fUST/lending_fUST_20250816
["ID","MTS","AMOUNT","RATE_DAILY","PERIOD"]
[379603144,1755343852205,-480.0,0.00022191,3]
[379603145,1755343852215,-480.0,0.00022191,3]
[379603146,1755343852224,-480.0,0.00022191,3]
[379603147,1755343852234,-480.0,0.00022191,3]
[379603148,1755343852243,-480.0,0.00022191,3]
[379603149,1755343852253,-5043.85,0.00022191,3]
[379603150,1755343852262,-200.13795879,0.00022191,3]
[379603151,1755343852271,-480.0,0.00022191,3]
[379603152,1755343852281,-250.734607,0.00022191,7]
[379603153,1755343852291,-250.734607,0.00022191,7]
[379603154,1755343852301,-480.0,0.00022191,3]
[379603155,1755343852310,-421.25850553,0.00022191,3]
[379603156,1755343852320,-480.0,0.00022191,3]
[379603157,1755343852329,-443.12660417,0.00022191,3]
[379603158,1755343852338,-250.734607,0.00022191,7]
[379603159,1755343852348,-719.48,0.00022191,3]
[379603160,1755343852357,-250.734607,0.00022191,7]
[379603161,1755343852367,-480.0,0.00022191,3]
[379603162,1755343852376,-329.77651135,0.00022191,3]
[379603163,1755343852385,-480.0,0.00022191,3]
[379603164,1755343852395,-480.0,0.00022191,3]
[379603165,1755343852404,-480.0,0.00022191,3]
[379603166,1755343852414,-480.0,0.00022191,3]
[379603167,1755343852423,-480.0,0.00022191,3]
[379603168,1755343852433,-480.0,0.00022191,3]
[379603169,1755343852443,-480.0,0.00022191,3]
[379603170,1755343852452,-7524.68,0.00022191,3]
[379603171,1755343852461,-420.0,0.00022191,3]
[379603172,1755343852470,-480.0,0.00022191,3]
[379603173,1755343852480,-480.0,0.00022191,3]
[379603174,1755343852490,-12474.9,0.00022191,3]
[379603175,1755343852499,-300.0,0.00022191,3]
[379603176,1755343852509,-619.12,0.00022191,3]
[379603177,1755343852519,-480.0,0.00022191,3]
[379603178,1755343852528,-480.0,0.00022191,3]
[379603179,1755343852538,-480.0,0.00022191,3]
[379603180,1755343852547,-480.0,0.00022191,3]
[379603181,1755343852557,-162.923681,0.00022191,7]
[379603182,1755343852565,-1107.27,0.00022191,3]
[379603183,1755343852573,-162.923681,0.00022191,7]
[379603184,1755343852583,-634.38,0.00022191,3]
[379603185,1755343852593,-151.0,0.00022191,7]
[379603186,1755343852602,-480.0,0.00022191,3]
[379603187,1755343852611,-1077.5,0.00022191,3]
[379603188,1755343852620,-151.0,0.00022191,7]
[379603189,1755343852630,-2272.92,0.00022191,3]
[379603190,1755343852639,-162.923681,0.00022191,7]
[379603191,1755343852649,-162.923681,0.00022191,7]
[379603192,1755343852658,-809.02,0.00022191,3]
[379603193,1755343852668,-480.0,0.00022191,3]
[379603194,1755343852678,-480.0,0.00022191,3]
[379603195,1755343852688,-480.0,0.00022191,3]
[379603196,1755343852698,-683.46,0.00022191,3]
[379603197,1755343852707,-480.0,0.00022191,3]
[379603198,1755343852717,-1365.55,0.00022191,3]
[379603199,1755343852726,-480.0,0.00022191,3]
[379603200,1755343852736,-480.0,0.00022191,3]
[379603201,1755343852745,-480.0,0.00022191,3]
[379603202,1755343852755,-742.19765,0.00022191,7]
[379603203,1755343852764,-856.32,0.00022191,3]
[379603204,1755343852773,-1233.23,0.00022191,3]
[379603205,1755343852782,-480.0,0.00022191,3]
[379603206,1755343852791,-742.19765,0.00022191,7]
[379603207,1755343852801,-947.46,0.00022191,3]
[379603208,1755343852810,-480.0,0.00022191,3]
[379603209,1755343852819,-480.0,0.00022191,3]
[379603210,1755343852829,-480.0,0.00022191,3]
[379603211,1755343852838,-480.0,0.00022191,3]
[379603212,1755343852847,-480.0,0.00022191,3]
[379603213,1755343852857,-480.0,0.00022191,3]
[379603214,1755343852866,-480.0,0.00022191,3]
[379603215,1755343852876,-480.0,0.00022191,3]
[379603216,1755343852886,-480.0,0.00022191,3]
[379603217,1755343852895,-480.0,0.00022191,3]
[379603218,1755343852905,-480.0,0.00022191,3]
[379603219,1755343852914,-4922.02,0.00022191,3]
[379603220,1755343852925,-2979.34,0.00022191,3]
[379603221,1755343852936,-480.0,0.00022191,3]
[379603222,1755343852945,-480.0,0.00022191,3]
[379603223,1755343852955,-480.0,0.00022191,3]
[379603224,1755343852964,-480.0,0.00022191,3]
[379603225,1755343852973,-569.67515468,0.00022191,3]
[379603226,1755343852983,-480.0,0.00022191,3]
[379603227,1755343852993,-480.0,0.00022191,3]
[379603228,1755343853003,-480.0,0.00022191,3]
[379603229,1755343853012,-480.0,0.00022191,3]
[379603230,1755343853021,-480.0,0.00022191,3]
[379603231,1755343853031,-480.0,0.00022191,3]
[379603232,1755343853040,-480.0,0.00022191,3]
[379603233,1755343853048,-397.23656085,0.00022191,3]
[379603234,1755343853058,-480.0,0.00022191,3]
[379603235,1755343853068,-1116.86,0.00022191,3]
[379603236,1755343853077,-480.0,0.00022191,3]
[379603237,1755343853086,-460.0,0.00022191,3]
[379603238,1755343853095,-188.58922377,0.00022191,3]
[379603239,1755343853104,-480.0,0.00022191,3]
[379603240,1755343853114,-480.0,0.00022191,3]
[379603241,1755343853124,-6893.89,0.00022191,3]
[379603242,1755343853133,-420.0,0.00022191,3]
[379603243,1755343853143,-480.0,0.00022191,3]
[379603244,1755343853152,-480.0,0.00022191,3]
[379603245,1755343853162,-480.0,0.00022191,3]
[379603246,1755343853171,-480.0,0.00022191,3]
[379603247,1755343853180,-480.0,0.00022191,3]
[379603248,1755343853190,-480.0,0.00022191,3]
[379603249,1755343853199,-480.0,0.00022191,3]
[379603250,1755343853209,-480.0,0.00022191,3]
[379603251,1755343853218,-480.0,0.00022191,3]
[379603252,1755343853227,-480.0,0.00022191,3]
[379603253,1755343853238,-151.0,0.000222,8]
[379603254,1755343853247,-151.0,0.000222,6]
[379603255,1755343853257,-896.54012624,0.000222,69]
[379603256,1755343853266,-896.54012621,0.000222,69]
[379603257,1755343853276,-742.19765,0.000222,7]
[379603258,1755343853286,-742.19765,0.000222,7]
[379603259,1755343853296,-676.0,0.00022211,2]
[379603260,1755343853306,-284.0,0.00022231,2]
[379603261,1755343853316,-153.32251725,0.00022247,2]
[379603262,1755343853325,-500.0,0.00022263,2]
[379603263,1755343853335,-151.0,0.00022263,2]
[379603264,1755343853345,-284.0,0.00022295,2]
[379603265,1755343853354,-151.0,0.000223,5]
[379603266,1755343853364,-1005.63349145,0.00022321,2]
[379603267,1755343853373,-411.28228242,0.00022321,2]
[379603268,1755343853382,-500.0,0.00022321,2]
[379603269,1755343853392,-544.97971579,0.00022321,2]
[379603270,1755343853402,-251.41654065,0.00022321,2]
[379603271,1755343853412,-168.0,0.00022327,2]
[379603272,1755343853421,-153.32251726,0.00022329,2]
[379603273,1755343853430,-151.0,0.00022348,2]
[379603274,1755343853440,-151.0,0.00022348,2]
[379603275,1755343853449,-151.0,0.00022348,2]
[379603276,1755343853459,-151.0,0.00022348,2]
[379603277,1755343853468,-151.0,0.00022348,2]
[379603278,1755343853477,-151.0,0.00022348,2]
[379603279,1755343853487,-151.0,0.00022348,2]
[379603280,1755343853496,-168.0,0.00022365,2]
[379603281,1755343853506,-153.32251725,0.00022384,2]
[379603282,1755343853516,-151.0,0.000224,9]
[379603283,1755343853525,-284.0,0.00022401,2]
[379603284,1755343853535,-194.008827,0.0002244,7]
[379603285,1755343853544,-194.008827,0.0002244,7]
[379603286,1755343853554,-501.74378,0.0002244,7]
[379603287,1755343853563,-501.74378,0.0002244,7]
[379603288,1755343853572,-6553.61285231,0.0002244,2]
[379603289,1755343853581,-480.0,0.00022465,3]
[379603290,1755343853591,-480.0,0.00022465,3]
[379603291,1755343853600,-480.0,0.00022465,3]
[379603292,1755343853609,-246.63855974,0.00022465,3]
[379603293,1755343853619,-340.0,0.00022465,3]
[379603294,1755343853628,-480.0,0.00022465,3]
[379603295,1755343853637,-480.0,0.00022465,3]
[379603296,1755343853647,-480.0,0.00022465,3]
[379603297,1755343853656,-240.60915166,0.00022465,3]
[379603298,1755343853666,-480.0,0.00022465,3]
[379603299,1755343853675,-480.0,0.00022465,3]
[379603300,1755343853685,-480.0,0.00022465,3]
[379603301,1755343853694,-340.0,0.00022465,3]
[379603302,1755343853704,-480.0,0.00022465,3]
[379603303,1755343853713,-480.0,0.00022465,3]
[379603304,1755343853722,-480.0,0.00022465,3]
[379603305,1755343853732,-480.0,0.00022465,3]
[379603306,1755343853742,-480.0,0.00022465,3]
[379603307,1755343853751,-480.0,0.00022465,3]
[379603308,1755343853761,-480.0,0.00022465,3]
[379603309,1755343853770,-480.0,0.00022465,3]
[379603310,1755343853780,-360.0,0.00022465,3]
[379603311,1755343853789,-504.99243989,0.00022465,3]
[379603312,1755343853799,-480.0,0.00022465,3]
[379603313,1755343853809,-480.0,0.00022465,3]
[379603314,1755343853818,-480.0,0.00022465,3]
[379603315,1755343853828,-420.0,0.00022465,3]
[379603316,1755343853837,-480.0,0.00022465,3]
[379603317,1755343853847,-480.0,0.00022465,3]
[379603318,1755343853856,-480.0,0.00022465,3]
[379603319,1755343853866,-480.0,0.00022465,3]
[379603320,1755343853875,-480.0,0.00022465,3]
[379603321,1755343853885,-480.0,0.00022465,3]
[379603322,1755343853894,-480.0,0.00022465,3]
[379603323,1755343853903,-480.0,0.00022465,3]
[379603324,1755343853913,-480.0,0.00022465,3]
[379603325,1755343853922,-2230.54,0.00022465,3]
[379603326,1755343853936,-480.0,0.00022465,3]
[379603327,1755343853946,-660.39,0.00022465,3]
[379603328,1755343853955,-480.0,0.00022465,3]
[379603329,1755343853965,-480.0,0.00022465,3]
[379603330,1755343853975,-480.0,0.00022465,3]
[379603331,1755343853984,-480.0,0.00022465,3]
[379603332,1755343853994,-480.0,0.00022465,3]
[379603333,1755343854006,-480.0,0.00022465,3]
[379603334,1755343854015,-480.0,0.00022465,3]
[379603335,1755343854025,-480.0,0.00022465,3]
[379603336,1755343854034,-480.0,0.00022465,3]
[379603337,1755343854044,-480.0,0.00022465,3]
[379603338,1755343854054,-480.0,0.00022465,3]
[379603339,1755343854067,-480.0,0.00022465,3]
[379603340,1755343854077,-340.0,0.00022465,3]
[379603341,1755343854086,-480.0,0.00022465,3]
[379603342,1755343854095,-480.0,0.00022465,3]
[379603343,1755343854105,-480.0,0.00022465,3]
[379603344,1755343854114,-480.0,0.00022465,3]
[379603345,1755343854124,-480.0,0.00022465,3]
[379603346,1755343854133,-603.35564049,0.00022465,3]
[379603347,1755343854143,-480.0,0.00022465,3]
[379603348,1755343854153,-480.0,0.00022465,3]
[379603349,1755343854163,-480.0,0.00022465,3]
[379603350,1755343854172,-480.0,0.00022465,3]
[379603351,1755343854181,-480.0,0.00022465,3]
[379603352,1755343854191,-480.0,0.00022465,3]
[379603353,1755343854200,-480.0,0.00022465,3]
[379603354,1755343854210,-480.0,0.00022465,3]
[379603355,1755343854219,-386.6819424,0.00022465,3]
[379603356,1755343854229,-480.0,0.00022465,3]
[379603357,1755343854239,-496.93350049,0.00022465,3]
[379603358,1755343854249,-158.12851034,0.00022465,3]
[379603359,1755343854259,-480.0,0.00022465,3]
[379603360,1755343854269,-480.0,0.00022465,3]
[379603361,1755343854278,-480.0,0.00022465,3]
[379603362,1755343854288,-480.0,0.00022465,3]
[379603363,1755343854298,-480.0,0.00022465,3]
[379603364,1755343854308,-480.0,0.00022465,3]
[379603365,1755343854317,-480.0,0.00022465,3]
[379603366,1755343854326,-480.0,0.00022465,3]
[379603367,1755343854336,-480.0,0.00022465,3]
[379603368,1755343854346,-402.27606829,0.00022465,3]
[379603369,1755343854355,-480.0,0.00022465,3]
[379603370,1755343854364,-480.0,0.00022465,3]
[379603371,1755343854373,-480.0,0.00022465,3]
[379603372,1755343854422,-480.0,0.00022465,3]
[379603373,1755343854434,-480.0,0.00022465,3]
[379603374,1755343854443,-480.0,0.00022465,3]
[379603375,1755343854452,-480.0,0.00022465,3]
[379603376,1755343854461,-420.0,0.00022465,3]
[379603377,1755343854471,-480.0,0.00022465,3]
[379603378,1755343854481,-2261.75,0.00022465,3]
[379603379,1755343854490,-480.0,0.00022465,3]
[379603380,1755343854500,-480.0,0.00022465,3]
[379603381,1755343854510,-480.0,0.00022465,3]
[379603382,1755343854519,-480.0,0.00022465,3]
[379603383,1755343854528,-480.0,0.00022465,3]
[379603384,1755343854538,-480.0,0.00022465,3]
[379603385,1755343854547,-480.0,0.00022465,3]
[379603386,1755343854556,-194.008827,0.00022465,7]
[379603387,1755343854565,-480.0,0.00022465,3]
[379603388,1755343854574,-480.0,0.00022465,3]
[379603389,1755343854583,-194.008827,0.00022465,7]
[379603390,1755343854598,-480.0,0.00022465,3]
[379603391,1755343854608,-532.14924528,0.00022465,3]
[379603392,1755343854617,-480.0,0.00022465,3]
[379603393,1755343854627,-573.66,0.00022465,3]
[379603394,1755343854636,-480.0,0.00022465,3]
[379603395,1755343854645,-480.0,0.00022465,3]
[379603396,1755343854654,-480.0,0.00022465,3]
[379603397,1755343854662,-480.0,0.00022465,3]
[379603398,1755343854671,-480.0,0.00022465,3]
[379603399,1755343854680,-480.0,0.00022465,3]
[379603400,1755343854689,-743.69,0.00022465,3]
[379603401,1755343854699,-480.0,0.00022465,3]
[379603402,1755343854708,-724.76,0.00022465,3]
[379603403,1755343854719,-480.0,0.00022465,3]
[379603404,1755343854729,-480.0,0.00022465,3]
[379603405,1755343854738,-480.0,0.00022465,3]
[379603406,1755343854748,-480.0,0.00022465,3]
[379603407,1755343854757,-480.0,0.00022465,3]
[379603408,1755343854766,-480.0,0.00022465,3]
[379603409,1755343854776,-480.0,0.00022465,3]
[379603410,1755343854785,-1513.37,0.00022465,3]
[379603411,1755343854795,-480.0,0.00022465,3]
[379603412,1755343854804,-217.99615416,0.00022465,3]
[379603413,1755343854813,-480.0,0.00022465,3]
[379603414,1755343854822,-400.0,0.00022465,3]
[379603415,1755343854831,-480.0,0.00022465,3]
[379603416,1755343854840,-480.0,0.00022465,3]
[379603417,1755343854850,-480.0,0.00022465,3]
[379603418,1755343854859,-1095.96,0.00022465,3]
[379603419,1755343854868,-480.0,0.00022465,3]
[379603420,1755343854877,-480.0,0.00022465,3]
[379603421,1755343854887,-480.0,0.00022465,3]
[379603422,1755343854896,-480.0,0.00022465,3]
[379603423,1755343854906,-480.0,0.00022465,3]
[379603424,1755343854916,-480.0,0.00022465,3]
[379603425,1755343854931,-480.0,0.00022465,3]
[379603426,1755343854943,-480.0,0.00022465,3]
[379603427,1755343854952,-480.0,0.00022465,3]
[379603428,1755343854962,-480.0,0.00022465,3]
[379603429,1755343854972,-480.0,0.00022465,3]
[379603430,1755343854982,-480.0,0.00022465,3]
[379603431,1755343854992,-480.0,0.00022465,3]
[379603432,1755343855002,-480.0,0.00022465,3]
[379603433,1755343855011,-480.0,0.00022465,3]
[379603434,1755343855021,-480.0,0.00022465,3]
[379603435,1755343855031,-725.0,0.00022465,3]
[379603436,1755343855041,-480.0,0.00022465,3]
[379603437,1755343855051,-480.0,0.00022465,3]
[379603438,1755343855061,-480.0,0.00022465,3]
[379603439,1755343855070,-480.0,0.00022465,3]
[379603440,1755343855080,-480.0,0.00022465,3]
[379603441,1755343855090,-480.0,0.00022465,3]
[379603442,1755343855099,-480.0,0.00022465,3]
[379603443,1755343855110,-261.94074091,0.00022465,3]
[379603444,1755343855120,-406.16066911,0.00022465,3]
[379603445,1755343855130,-480.0,0.00022465,3]
[379603446,1755343855140,-480.0,0.00022465,3]
[379603447,1755343855150,-480.0,0.00022465,3]
[379603448,1755343855161,-480.0,0.00022465,3]
[379603449,1755343855171,-1753.15,0.00022465,3]
[379603450,1755343855181,-480.0,0.00022465,3]
[379603451,1755343855191,-480.0,0.00022465,3]
[379603452,1755343855201,-610.49129169,0.00022465,3]
[379603453,1755343855211,-480.0,0.00022465,3]
[379603454,1755343855222,-480.0,0.00022465,3]
[379603455,1755343855232,-480.0,0.00022465,3]
[379603456,1755343855243,-480.0,0.00022465,3]
[379603457,1755343855253,-420.0,0.00022465,3]
[379603458,1755343855263,-501.74378,0.00022465,7]
[379603459,1755343855273,-480.0,0.00022465,3]
[379603460,1755343855283,-480.0,0.00022465,3]
[379603461,1755343855293,-501.74378,0.00022465,7]
[379603462,1755343855303,-480.0,0.00022465,3]
[379603463,1755343855312,-480.0,0.00022465,3]
[379603464,1755343855322,-365.38648774,0.00022465,3]
[379603465,1755343855332,-480.0,0.00022465,3]
[379603466,1755343855341,-480.0,0.00022465,3]
[379603467,1755343855350,-480.0,0.00022465,3]
[379603468,1755343855360,-480.0,0.00022465,3]
[379603469,1755343855370,-480.0,0.00022465,3]
[379603470,1755343855379,-151.0,0.00022465,7]
[379603471,1755343855389,-480.0,0.00022465,3]
[379603472,1755343855400,-480.0,0.00022465,3]
[379603473,1755343855409,-480.0,0.00022465,3]
[379603474,1755343855419,-337.23312805,0.00022465,3]
[379603475,1755343855429,-1568.16,0.00022465,3]
[379603476,1755343855438,-2648.8,0.00022465,3]
[379603477,1755343855449,-196.9079012,0.00022465,3]
[379603478,1755343855467,-480.0,0.00022465,3]
[379603479,1755343855487,-480.0,0.00022465,3]
[379603480,1755343855503,-480.0,0.00022465,3]
[379603481,1755343855513,-480.0,0.00022465,3]
[379603482,1755343855523,-480.0,0.00022465,3]
[379603483,1755343855534,-360.0,0.00022465,3]
[379603485,1755343855543,-382.46665702,0.00022465,3]
[379603486,1755343855553,-480.0,0.00022465,3]
[379603487,1755343855562,-1129.28,0.00022465,3]
[379603488,1755343855571,-480.0,0.00022465,3]
[379603489,1755343855581,-480.0,0.00022465,3]
[379603490,1755343855591,-3533.42,0.00022465,3]
[379603491,1755343855601,-480.0,0.00022465,3]
[379603492,1755343855611,-342.23932036,0.00022465,3]
[379603493,1755343855620,-480.0,0.00022465,3]
[379603494,1755343855629,-152.50583,0.00022465,7]
[379603495,1755343855639,-707.78,0.00022465,3]
[379603496,1755343855649,-480.0,0.00022465,3]
[379603497,1755343855658,-480.0,0.00022465,3]
[379603498,1755343855668,-480.0,0.00022465,3]
[379603499,1755343855677,-480.0,0.00022465,3]
[379603500,1755343855687,-480.0,0.00022465,3]
[379603501,1755343855696,-480.0,0.00022465,2]
[379603502,1755343855706,-480.0,0.00022465,3]
[379603503,1755343855715,-480.0,0.00022465,3]
[379603504,1755343855725,-511.5458643,0.00022465,3]
[379603505,1755343855735,-480.0,0.00022465,3]
[379603506,1755343855745,-480.0,0.00022465,3]
[379603507,1755343855755,-480.0,0.00022465,3]
[379603508,1755343855764,-151.0,0.00022465,7]
[379603509,1755343855774,-151.0,0.00022465,7]
[379603510,1755343855783,-480.0,0.00022465,3]
[379603511,1755343855793,-480.0,0.00022465,3]
[379603512,1755343855803,-151.0,0.00022465,7]
[379603513,1755343855812,-484.85,0.00022465,3]
[379603514,1755343855822,-480.0,0.00022465,3]
[379603515,1755343855831,-151.0,0.00022465,7]
[379603516,1755343855841,-480.0,0.00022465,3]
[379603517,1755343855850,-480.0,0.00022465,3]
[379603518,1755343855859,-480.0,0.00022465,3]
[379603519,1755343855870,-480.0,0.00022465,3]
[379603520,1755343855880,-480.0,0.00022465,3]
[379603521,1755343855889,-480.0,0.00022465,3]
[379603522,1755343855899,-480.0,0.00022465,3]
[379603523,1755343855908,-480.0,0.00022465,3]
[379603524,1755343855918,-480.0,0.00022465,3]
[379603525,1755343855930,-480.0,0.00022465,3]
[379603526,1755343855941,-480.0,0.00022465,3]
[379603527,1755343855952,-480.0,0.00022465,3]
[379603528,1755343855961,-1152.54,0.00022465,3]
[379603529,1755343855973,-791.92,0.00022465,3]
[379603530,1755343855983,-151.0,0.00022465,7]
[379603531,1755343855995,-151.0,0.00022465,7]
[379603532,1755343856006,-791.03,0.00022465,3]
[379603533,1755343856016,-782.85,0.00022465,3]
[379603534,1755343856026,-480.0,0.00022465,3]
[379603535,1755343856035,-480.0,0.00022465,3]
[379603536,1755343856045,-480.0,0.00022465,3]
[379603537,1755343856055,-480.0,0.00022465,3]
[379603538,1755343856064,-500.0,0.00022465,3]
[379603539,1755343856073,-480.0,0.00022465,3]
[379603540,1755343856083,-527.53,0.00022465,3]
[379603541,1755343856093,-480.0,0.00022465,3]
[379603542,1755343856103,-480.0,0.00022465,3]
[379603543,1755343856113,-678.52,0.00022465,3]
[379603544,1755343856123,-781.9,0.00022465,3]
[379603545,1755343856133,-340.0,0.00022465,3]
[379603546,1755343856143,-545.03,0.00022465,3]
[379603547,1755343856152,-755.57,0.00022465,3]
[379603548,1755343856162,-480.0,0.00022465,3]
[379603549,1755343856171,-916.98,0.00022465,3]
[379603550,1755343856181,-480.0,0.00022465,3]
[379603551,1755343856191,-320.0,0.00022465,3]
[379603552,1755343856201,-1537.62,0.00022465,3]
[379603553,1755343856210,-480.0,0.00022465,3]
[379603554,1755343856220,-480.0,0.00022465,3]
[379603555,1755343856230,-1080.95,0.00022465,3]
[379603556,1755343856240,-2123.71,0.00022465,3]
[379603557,1755343856250,-480.0,0.00022465,3]
[379603558,1755343856260,-480.0,0.00022465,3]
[379603559,1755343856270,-834.84,0.00022465,3]
[379603560,1755343856280,-630.33,0.00022465,3]
[379603561,1755343856290,-480.0,0.00022465,3]
[379603562,1755343856300,-480.0,0.00022465,3]
[379603563,1755343856309,-480.0,0.00022465,3]
[379603564,1755343856319,-420.0,0.00022465,3]
[379603565,1755343856328,-480.0,0.00022465,3]
[379603566,1755343856338,-448.03659096,0.00022465,3]
[379603567,1755343856348,-480.0,0.00022465,3]
[379603568,1755343856358,-1582.23,0.00022465,3]
[379603569,1755343856368,-480.0,0.00022465,3]
[379603570,1755343856377,-480.0,0.00022465,3]
[379603571,1755343856387,-480.0,0.00022465,3]
[379603572,1755343856396,-603.52,0.00022465,3]
[379603573,1755343856406,-480.0,0.00022465,3]
[379603574,1755343856415,-480.0,0.00022465,3]
[379603575,1755343856425,-480.0,0.00022465,3]
[379603576,1755343856435,-480.0,0.00022465,3]
[379603577,1755343856445,-480.0,0.00022465,3]
[379603578,1755343856454,-1050.97,0.00022465,3]
[379603579,1755343856464,-2191.75,0.00022465,3]
[379603580,1755343856473,-480.0,0.00022465,3]
[379603581,1755343856483,-1156.0,0.00022465,3]
[379603582,1755343856494,-480.0,0.00022465,3]
[379603583,1755343856505,-502.32,0.00022465,3]
[379603584,1755343856515,-480.0,0.00022465,3]
[379603585,1755343856524,-480.0,0.00022465,3]
[379603586,1755343856534,-480.0,0.00022465,3]
[379603587,1755343856544,-480.0,0.00022465,3]
[379603588,1755343856553,-305.58505684,0.00022465,3]
[379603589,1755343856563,-480.0,0.00022465,3]
[379603590,1755343856572,-480.0,0.00022465,3]
[379603591,1755343856582,-480.0,0.00022465,3]
[379603592,1755343856592,-480.0,0.00022465,3]
[379603593,1755343856602,-480.0,0.00022465,3]
[379603594,1755343856612,-800.04,0.00022465,3]
[379603595,1755343856621,-669.88,0.00022465,3]
[379603596,1755343856631,-480.0,0.00022465,3]
[379603597,1755343856640,-927.22,0.00022465,3]
[379603598,1755343856650,-690.91,0.00022465,3]
[379603599,1755343856660,-480.0,0.00022465,3]
[379603600,1755343856670,-480.0,0.00022465,3]
[379603601,1755343856679,-1214.54,0.00022465,3]
[379603602,1755343856689,-480.0,0.00022465,3]
[379603603,1755343856699,-480.0,0.00022465,3]
[379603604,1755343856708,-480.0,0.00022465,3]
[379603605,1755343856717,-480.0,0.00022465,3]
[379603606,1755343856726,-480.0,0.00022465,3]
[379603607,1755343856739,-480.0,0.00022465,3]
[379603608,1755343856748,-480.0,0.00022465,3]
[379603609,1755343856758,-460.0,0.00022465,3]
[379603610,1755343856767,-314.34209904,0.00022465,3]
[379603611,1755343856776,-480.0,0.00022465,3]
[379603612,1755343856786,-5043.85,0.00022465,3]
[379603613,1755343856796,-480.0,0.00022465,3]
[379603614,1755343856805,-250.734607,0.00022465,7]
[379603615,1755343856815,-337.86023083,0.00022465,3]
[379603616,1755343856828,-480.0,0.00022465,3]
[379603617,1755343856837,-250.734607,0.00022465,7]
[379603618,1755343856846,-480.0,0.00022465,3]
[379603619,1755343856856,-480.0,0.00022465,3]
[379603620,1755343856868,-480.0,0.00022465,3]
[379603621,1755343856877,-480.0,0.00022465,3]
[379603622,1755343856887,-480.0,0.00022465,3]
[379603623,1755343856896,-480.0,0.00022465,3]
[379603624,1755343856906,-480.0,0.00022465,3]
[379603625,1755343856915,-480.0,0.00022465,3]
[379603626,1755343856925,-7524.68,0.00022465,3]
[379603627,1755343856937,-480.0,0.00022465,3]
[379603628,1755343856947,-480.0,0.00022465,3]
[379603629,1755343856956,-12474.9,0.00022465,3]
[379603630,1755343856966,-619.12,0.00022465,3]
[379603631,1755343856975,-480.0,0.00022465,3]
[379603632,1755343856985,-400.0,0.00022465,3]
[379603633,1755343856995,-480.0,0.00022465,3]
[379603634,1755343857005,-1107.27,0.00022465,3]
[379603635,1755343857014,-162.923681,0.00022465,7]
[379603636,1755343857024,-162.923681,0.00022465,7]
[379603637,1755343857034,-634.38,0.00022465,3]
[379603638,1755343857044,-1077.5,0.00022465,3]
[379603639,1755343857053,-480.0,0.00022465,3]
[379603640,1755343857063,-2272.92,0.00022465,3]
[379603641,1755343857072,-154.622068,0.00022465,7]
[379603642,1755343857082,-809.02,0.00022465,3]
[379603643,1755343857091,-162.923681,0.00022465,7]
[379603644,1755343857101,-162.923681,0.00022465,7]